bitfinex-derivatives/quotes_BNBF0:USTF0_20250510
["timestamp","ask_amount","ask_price","bid_price","bid_amount"]
[1746892593541,0.28203974,651.91,650.76,1.14393515]
[1746892593743,0.28203974,651.91,650.76,1.41453416]
[1746892594043,0.30680022,651.89,650.76,1.14393515]
[1746892594346,0.28216621,651.88,650.64,1.14393515]
[1746892594542,0.28216621,651.88,650.68,0.26703909]
[1746892597343,0.28216621,651.88,650.5,0.3074558]
[1746892597638,0.28216621,651.88,650.68,0.26712518]
[1746892597836,0.28216621,651.88,650.51,1.15058398]
[1746892598041,0.28216621,651.88,650.52,0.92506426]
[1746892598343,0.28216621,651.88,650.51,1.15058398]
[1746892598543,0.28216621,651.88,650.53,0.26714979]
[1746892598741,0.28216621,651.88,650.54,1.15058398]
[1746892598943,0.30680022,651.89,650.54,1.15058398]
[1746892599543,0.30680022,651.89,650.53,0.26714979]
[1746892600044,0.28224503,651.88,650.53,0.26714979]
[1746892600244,0.28224503,651.88,649.82,0.97084576]
[1746892600439,0.28224503,651.88,649.84,0.30776806]
[1746892600640,0.28224503,651.88,649.85,0.92590456]
[1746892600838,0.28224503,651.88,649.86,0.92590456]
[1746892601039,0.28224503,651.88,649.87,2.0775215]
[1746892601243,0.28224503,651.88,649.88,0.92590456]
[1746892601544,0.26721851,651.87,649.89,0.92590456]
[1746892601743,0.26721851,651.87,649.9,0.92590456]
[1746892601943,0.26721851,651.87,649.91,2.0775215]
[1746892602243,0.26721851,651.87,649.92,0.92590456]
[1746892602244,0.28224503,651.86,649.92,0.92590456]
[1746892602446,0.28224503,651.86,649.93,2.34892672]
[1746892602645,0.28224503,651.86,649.94,0.92590456]
[1746892602843,0.28224503,651.86,649.95,0.92590456]
[1746892603045,0.28224503,651.86,649.96,2.34892672]
[1746892603239,0.28224503,651.86,649.97,0.92590456]
[1746892603439,0.28224503,651.86,649.98,0.92590456]
[1746892603640,0.28224503,651.86,649.99,2.0775215]
[1746892603842,0.28224503,651.88,650.0,0.92590456]
[1746892604041,0.28224503,651.88,650.01,2.0775215]
[1746892604241,0.28224503,651.88,650.02,0.92590456]
[1746892604545,0.2672062,651.87,650.03,2.0775215]
[1746892604741,0.2672062,651.87,650.04,0.92590456]
[1746892604940,0.2672062,651.87,650.05,0.92590456]
[1746892605143,0.2672062,651.87,650.06,0.92590456]
[1746892605345,0.28224503,651.86,650.07,1.19730978]
[1746892605541,0.28224503,651.86,650.08,0.92590456]
[1746892605741,0.28224503,651.86,650.09,0.92590456]
[1746892606045,0.28224503,651.86,650.1,2.34892672]
[1746892606246,0.28224503,651.86,650.11,0.92590456]
[1746892606445,0.28224503,651.86,650.12,0.92590456]
[1746892606645,0.28224503,651.88,650.13,0.92590456]
[1746892606845,0.28224503,651.88,650.14,0.92590456]
[1746892607045,0.28224503,651.88,650.15,2.0775215]
[1746892607347,0.28224503,651.88,650.16,0.92590456]
[1746892607540,0.26719184,651.87,650.17,0.92590456]
[1746892607849,0.26719184,651.87,650.18,2.0775215]
[1746892608147,0.28224503,651.86,650.19,2.0775215]
[1746892608346,0.28224503,651.86,650.2,2.34892672]
[1746892608546,0.28224503,651.86,650.21,0.92590456]
[1746892608748,0.30682376,651.84,650.22,0.92590456]
[1746892608951,0.30682376,651.84,650.23,0.92590456]
[1746892609144,0.28224503,651.83,650.24,2.0775215]
[1746892609344,0.28224503,651.83,650.25,0.923389]
[1746892609547,0.28224503,651.83,650.26,2.07500594]
[1746892609846,0.28224503,651.83,650.27,0.923389]
[1746892610043,0.30683788,651.81,650.28,2.07500594]
[1746892610247,0.30683788,651.81,650.29,0.923389]
[1746892610449,0.28224503,651.8,650.3,2.07500594]
[1746892610647,0.28224503,651.8,650.31,0.923389]
[1746892610847,0.306852,651.78,650.32,0.923389]
[1746892611048,0.306852,651.78,650.33,0.923389]
[1746892611241,0.28224503,651.77,650.34,0.923389]
[1746892611446,0.30686612,651.75,650.32,1.15161694]
[1746892611742,0.30686612,651.75,650.33,2.07489268]
[1746892611942,0.30686612,651.75,650.33,1.15161694]
[1746892612248,0.28224503,651.74,650.34,2.0749451]
[1746892612448,0.30688025,651.72,650.34,1.15161694]
[1746892612743,0.30688025,651.72,650.35,1.15161694]
[1746892612949,0.28224503,651.71,650.35,1.15161694]
[1746892613149,0.30688025,651.72,650.35,1.15161694]
[1746892613449,0.30689438,651.69,650.36,1.15161694]
[1746892613745,0.28225421,651.68,650.36,1.15161694]
[1746892613949,0.28225421,651.68,650.37,1.15161694]
[1746892614448,0.28225421,651.68,650.38,1.15161694]
[1746892614848,0.3069038,651.67,650.39,1.15161694]
[1746892615053,0.28225421,651.66,650.39,1.15161694]
[1746892615255,0.28225421,651.66,650.4,1.15161694]
[1746892615448,0.30691322,651.65,650.41,1.15161694]
[1746892615653,0.30691322,651.65,650.42,1.15161694]
[1746892615851,0.28225421,651.64,650.42,1.15161694]
[1746892616153,0.30692264,651.63,650.42,1.15161694]
[1746892616454,0.30692264,651.63,650.43,1.15161694]
[1746892616653,0.28225421,651.62,650.43,1.15161694]
[1746892616850,0.30693206,651.61,650.43,1.15161694]
[1746892617255,0.28225421,651.6,650.24,0.26718568]
[1746892617456,0.30694148,651.59,650.25,0.9227108]
[1746892617756,0.30694148,651.59,650.26,2.07071729]
[1746892617952,0.28225421,651.58,650.27,2.07071729]
[1746892618154,0.3069509,651.57,650.28,0.9227108]
[1746892618352,0.3069509,651.57,650.29,0.9227108]
[1746892618555,0.3069509,651.57,650.3,0.92259527]
[1746892618755,0.3069509,651.57,650.31,0.92259527]
[1746892618952,0.3069509,651.57,650.32,0.92259527]
[1746892619156,0.3069509,651.57,650.31,1.14800649]
[1746892619357,0.3069509,651.57,650.32,0.92260499]
[1746892619557,0.3069509,651.57,650.33,1.14800649]
[1746892619953,0.3069509,651.57,650.34,1.14800649]
[1746892620259,0.28225529,651.56,650.34,1.14800649]
[1746892620461,0.28225529,651.56,650.35,1.14800649]
[1746892620855,0.28225529,651.56,650.26,1.14800649]
[1746892621059,0.28225529,651.56,650.27,0.92266652]
[1746892621261,0.28225529,651.56,650.26,1.14800649]
[1746892621451,0.3069509,651.57,650.27,0.9227749]
[1746892621654,0.2822834,651.56,650.26,1.41523321]
[1746892621962,0.2822834,651.56,650.27,1.14800649]
[1746892624659,0.30696503,651.54,650.27,1.14800649]
[1746892624861,0.2822834,651.53,650.27,1.14800649]
[1746892625054,0.2822834,651.53,650.28,0.92257032]
[1746892625255,0.30696503,651.54,650.29,2.07109123]
[1746892625457,0.30696503,651.54,650.3,0.92255551]
[1746892625658,0.30696503,651.54,650.29,1.14853572]
[1746892625860,0.30696503,651.54,650.3,0.92244139]
[1746892626164,0.30696503,651.54,650.31,0.92244139]
[1746892626363,0.30696503,651.54,650.32,1.14853572]
[1746892627064,0.30696503,651.54,650.33,1.14853572]
[1746892627765,0.30696503,651.54,650.34,1.14853572]
[1746892627960,0.30696503,651.54,650.35,1.14853572]
[1746892628366,0.30696503,651.54,650.36,1.14853572]
[1746892628967,0.30696503,651.54,650.37,1.14853572]
[1746892629267,0.30696503,651.54,650.29,0.26718979]
[1746892629268,0.30696503,651.54,650.38,1.14853572]
[1746892629766,0.30696503,651.54,650.39,1.14853572]
[1746892629967,0.30696503,651.54,650.4,1.14853572]
[1746892630767,0.30696503,651.54,650.41,1.14853572]
[1746892631466,0.30696503,651.54,650.33,0.26718261]
[1746892631766,0.28225674,651.53,650.34,1.14850362]
[1746892632169,0.28225674,651.53,650.35,1.14850362]
[1746892632370,0.30696503,651.54,650.35,1.14850362]
[1746892632670,0.30696503,651.54,650.34,1.14850362]
[1746892633674,0.30696503,651.54,650.33,0.26718466]
[1746892633872,0.30696503,651.54,650.34,1.14850362]
[1746892636672,0.30696503,651.54,650.33,0.26719491]
[1746892637168,0.28226574,651.53,650.34,1.14850362]
[1746892640073,0.28226574,651.53,650.35,0.9229435]
[1746892640276,0.28226574,651.53,650.36,0.9229435]
[1746892640475,0.28226574,652.36,650.37,1.19412769]
[1746892640774,0.26704216,652.18,650.38,2.07144712]
[1746892640976,0.30658858,652.34,650.39,2.07144712]
[1746892641176,0.26706471,652.17,650.4,0.9229435]
[1746892641377,0.28226574,652.16,650.41,1.19412769]
[1746892641576,0.28226574,652.16,650.42,2.07144712]
[1746892641879,0.5493325,652.16,650.43,0.9229435]
[1746892642076,0.26706676,652.16,650.44,0.9229435]
[1746892642376,0.28226574,652.33,650.45,2.07144712]
[1746892642577,0.28226574,652.15,650.46,0.9229435]
[1746892642875,0.28226574,652.15,650.47,0.9229435]
[1746892643075,0.28226574,652.33,650.48,0.9229435]
[1746892643273,0.28226574,652.33,650.49,1.19412769]
[1746892643475,0.28226574,652.33,650.5,0.9229435]
[1746892643671,0.26705651,652.32,650.51,2.07144712]
[1746892643975,0.28226574,652.31,650.52,1.19412769]
[1746892644176,0.28226574,652.31,650.53,0.9229435]
[1746892644371,0.28226574,652.31,650.54,0.9229435]
[1746892644576,0.28226574,652.31,650.55,0.9229435]
[1746892644777,0.28226574,652.31,650.56,2.07144712]
[1746892645077,0.28226574,652.31,650.57,2.07144712]
[1746892645277,0.28226574,652.31,650.58,0.9229435]
[1746892645579,0.2670104,652.3,650.59,2.34263131]
[1746892645770,0.2670104,652.3,650.6,2.07144712]
[1746892645975,0.2670104,652.3,650.61,0.9229435]
[1746892646277,0.28205907,652.29,650.62,1.19397705]
[1746892646476,0.28205907,652.29,650.63,0.9229435]
[1746892646777,0.28205907,652.29,650.64,0.9229435]
[1746892646983,0.28205907,652.29,650.65,0.9229435]
[1746892647277,0.28205907,652.29,650.66,2.07144712]
[1746892647477,0.28205907,652.29,650.67,0.9229435]
[1746892647782,0.28205907,652.29,650.68,0.9229435]
[1746892647978,0.28205907,652.29,650.69,0.9229435]
[1746892648172,0.28205907,652.29,650.7,0.9229435]
[1746892648377,0.28205907,652.29,650.71,0.9229435]
[1746892648572,0.28205907,652.29,650.72,2.07144712]
[1746892648773,0.28205907,652.33,650.73,0.9229435]
[1746892649074,0.30662149,652.27,650.74,0.9229435]
[1746892649277,0.30662149,652.27,650.75,0.9229435]
[1746892649578,0.26699197,652.26,650.76,0.9229435]
[1746892649874,0.30663559,652.24,650.77,0.9229435]
[1746892650072,0.30663559,652.24,650.78,0.9229435]
[1746892650275,0.30663559,652.24,650.79,0.9229435]
[1746892650472,0.28205907,652.23,650.8,0.9229435]
[1746892650672,0.28205907,652.23,650.81,1.19397705]
[1746892650874,0.28205907,652.23,650.82,0.9229435]
[1746892651076,0.28205907,652.23,650.83,2.07144712]
[1746892651372,0.28205907,652.23,650.84,0.9229435]
[1746892651576,0.28205907,652.23,650.85,2.07144712]
[1746892651772,0.30663559,652.24,650.85,1.14850362]
[1746892651978,0.28203181,652.23,650.85,1.14850362]
[1746892652178,0.30664969,652.21,650.86,1.14850362]
[1746892652680,0.28203181,652.2,650.86,1.14850362]
[1746892652877,0.28203181,652.2,650.87,1.14850362]
[1746892653277,0.28203181,652.2,650.88,1.14850362]
[1746892653577,0.3066638,652.18,650.89,1.14850362]
[1746892653971,0.28203181,652.17,650.89,1.14850362]
[1746892654473,0.28203181,652.17,650.9,1.14850362]
[1746892654874,0.28203181,652.17,650.91,1.14850362]
[1746892655480,0.30667791,652.15,650.92,1.14850362]
[1746892655878,0.28203181,652.14,650.92,1.14850362]
[1746892656079,0.30668731,652.13,650.92,1.14850362]
[1746892656280,0.30668731,652.13,650.93,1.14850362]
[1746892656583,0.28203181,652.12,650.93,1.14850362]
[1746892656783,0.30669672,652.11,650.94,1.14850362]
[1746892657281,0.28203181,652.1,650.94,1.14850362]
[1746892657483,0.28203181,652.1,649.8,0.97084576]
[1746892657686,0.30670612,652.09,649.85,0.92118794]
[1746892657877,0.30670612,652.09,649.96,0.30771124]
[1746892658079,0.30670612,652.09,649.97,0.92118794]
[1746892658279,0.30670612,652.09,650.07,0.30765917]
[1746892658483,0.30670612,652.09,650.08,2.06756265]
[1746892658682,0.30670612,652.09,650.18,0.30760712]
[1746892658880,0.30670612,652.09,650.19,2.33845835]
[1746892659081,0.30670612,652.09,650.21,0.30759293]
[1746892659281,0.30670612,652.09,650.22,1.19208364]
[1746892659485,0.30670612,652.09,650.23,2.06756265]
[1746892659684,0.30670612,652.09,650.24,0.92118794]
[1746892659879,0.30670612,652.09,650.26,0.30756927]
[1746892660084,0.30670612,652.09,650.27,2.06756265]
[1746892660283,0.28202138,652.08,650.29,0.30755509]
[1746892660486,0.30671553,652.07,650.3,0.92118794]
[1746892660687,0.30671553,652.07,650.32,0.3075409]
[1746892660881,0.28202138,652.06,650.33,2.33845835]
[1746892661085,0.28202138,652.06,650.35,0.30752671]
[1746892661386,0.30672494,652.05,650.36,2.06756265]
[1746892661586,0.30672494,652.05,650.38,0.30751253]
[1746892661788,0.30672494,652.05,650.39,0.92118794]
[1746892661980,0.30672494,652.05,650.4,2.06756265]
[1746892662181,0.30672494,652.05,650.41,0.92118794]
[1746892662484,0.28213673,652.04,650.42,0.92118794]
[1746892662693,0.28213673,652.04,650.43,0.92118794]
[1746892662888,0.28213673,652.04,650.44,2.33845835]
[1746892663182,0.28213673,652.04,650.45,1.19208364]
[1746892663389,0.28213673,652.04,650.46,2.33845835]
[1746892663692,0.28213673,652.04,650.47,0.92118794]
[1746892663988,0.28213673,652.04,650.48,2.06756265]
[1746892664183,0.28213673,652.04,650.49,0.92118794]
[1746892664381,0.28213673,652.04,650.5,0.92118794]
[1746892664581,0.28213673,652.04,650.51,2.06756265]
[1746892664782,0.28213673,652.04,650.52,0.92118794]
[1746892664988,0.28213673,652.04,650.53,0.92118794]
[1746892665285,0.28213673,652.04,650.54,2.06756265]
[1746892665582,0.28213673,652.04,650.55,2.06756265]
[1746892665788,0.28213673,652.04,650.56,0.92118794]
[1746892665985,0.28213673,652.04,650.57,2.06756265]
[1746892666189,0.28213673,652.04,650.58,0.92118794]
[1746892666389,0.28213673,652.04,650.59,2.06756265]
[1746892666685,0.30673435,652.03,650.6,1.1924882]
[1746892666883,0.28213673,652.02,650.61,1.1924882]
[1746892667087,0.28213673,652.02,650.62,2.06756265]
[1746892667285,0.28213673,652.02,650.63,1.1924882]
[1746892667489,0.28213673,652.02,650.64,2.33886291]
[1746892667691,0.28213673,652.02,650.65,0.92118794]
[1746892667884,0.28213673,652.02,650.66,2.06756265]
[1746892668089,0.28213673,652.02,650.66,1.14637471]
[1746892668390,0.28213673,652.02,650.67,1.1910228]
[1746892668591,0.28213673,652.02,650.68,0.91972254]
[1746892668889,0.30674376,652.01,650.69,2.06609725]
[1746892669089,0.30674376,652.01,650.7,1.1910228]
[1746892669286,0.30674376,652.01,650.71,0.91972254]
[1746892669493,0.30674376,652.01,650.72,0.91972254]
[1746892669689,0.30674376,652.01,650.73,0.91972254]
[1746892669890,0.28201592,652.0,650.74,0.91972254]
[1746892670089,0.28201592,652.0,650.75,2.06609725]
[1746892670286,0.28201592,652.0,650.76,0.91972254]
[1746892670491,0.30674376,652.01,650.77,1.1910228]
[1746892670687,0.30674376,652.01,650.78,2.06609725]
[1746892670893,0.30674376,652.01,650.79,1.1910228]
[1746892671091,0.30674376,652.01,650.8,0.91972254]
[1746892671286,0.30674376,652.01,650.81,2.06609725]
[1746892671485,0.30674376,652.01,650.82,1.1910228]
[1746892671690,0.30674376,652.01,650.83,0.91972254]
[1746892671893,0.30674376,652.01,650.84,1.1910228]
[1746892672191,0.30674376,652.01,650.85,2.33739751]
[1746892672392,0.30674376,652.01,650.86,1.19046585]
[1746892672593,0.30674376,652.01,650.87,0.91916559]
[1746892672791,0.30674376,652.01,650.88,1.14637471]
[1746892673593,0.30674376,652.01,650.89,1.14637471]
[1746892674095,0.30674376,652.01,650.9,1.14637471]
[1746892674695,0.30674376,652.01,650.91,1.14637471]
[1746892675194,0.30674376,652.01,650.92,1.14637471]
[1746892675695,0.30674376,652.01,650.93,1.14637471]
[1746892675889,0.30674376,652.01,650.94,1.14637471]
[1746892676395,0.30674376,652.01,650.95,1.14637471]
[1746892676797,0.30674376,652.01,650.96,1.14637471]
[1746892677197,0.30674376,652.01,650.97,1.14637471]
[1746892677595,0.30674376,652.01,650.98,1.14637471]
[1746892678093,0.30674376,652.01,650.66,0.26684559]
[1746892678296,0.30674376,652.01,650.67,0.91903877]
[1746892678496,0.30674376,652.01,650.68,0.91903877]
[1746892678696,0.30674376,652.01,650.69,2.06419308]
[1746892678894,0.30674376,652.01,650.7,0.91903877]
[1746892679092,0.30674376,652.01,650.71,1.14515431]
[1746892679293,0.30674376,652.01,650.72,1.19009305]
[1746892679491,0.30674376,652.01,650.73,0.91903877]
[1746892679696,0.30674376,652.01,650.74,1.41620859]
[1746892679896,0.30674376,652.01,650.75,0.91903877]
[1746892680091,0.30674376,652.01,650.75,1.19009305]
[1746892680292,0.30674376,652.01,650.76,2.06419308]
[1746892680496,0.30674376,652.01,650.77,0.91903877]
[1746892680696,0.30674376,652.01,650.78,1.14515431]
[1746892680893,0.30674376,652.01,650.79,0.91903877]
[1746892681399,0.30674376,652.01,650.8,1.14515431]
[1746892681698,0.30674376,652.01,650.81,0.91903877]
[1746892681999,0.30674376,652.01,650.82,1.14515431]
[1746892682293,0.30674376,652.01,650.83,0.91903877]
[1746892683198,0.30674376,652.01,650.84,1.14515431]
[1746892683397,0.30674376,652.01,650.85,0.91903877]
[1746892683597,0.30674376,652.01,650.86,1.14515431]
[1746892683796,0.30674376,652.01,650.87,0.91903877]
[1746892684098,0.30674376,652.01,650.88,1.14515431]
[1746892684297,0.30674376,652.01,650.89,0.91903877]
[1746892684500,0.30674376,652.01,650.9,1.14515431]
[1746892684995,0.30674376,652.01,650.77,1.14515431]
[1746892685194,0.30674376,652.01,650.78,0.91983686]
[1746892685393,0.30674376,652.01,650.79,0.91983686]
[1746892685597,0.30674376,652.01,650.8,0.91983686]
[1746892685898,0.30674376,652.01,650.81,1.41626379]
[1746892686096,0.30674376,652.01,650.82,0.91983686]
[1746892686294,0.30674376,652.01,650.82,1.19094634]
[1746892686494,0.30674376,652.01,650.83,2.06499117]
[1746892686796,0.30674376,652.01,650.84,0.91983686]
[1746892686995,0.30674376,652.01,650.85,1.14515431]
[1746892687199,0.30674376,652.01,650.86,0.91983686]
[1746892687601,0.30674376,652.01,650.87,1.14515431]
[1746892687802,0.30674376,652.01,650.88,0.91983686]
[1746892688301,0.30674376,652.01,650.89,0.92070674]
[1746892688500,0.30674376,652.01,650.9,0.92070674]
[1746892688896,0.30674376,652.01,650.91,1.14515431]
[1746892689602,0.30674376,652.01,650.81,1.14515431]
[1746892689802,0.30674376,652.01,650.82,0.92097447]
[1746892690001,0.30674376,652.01,650.83,0.92097447]
[1746892690196,0.30674376,652.01,650.84,0.92097447]
[1746892690400,0.30674376,652.01,650.85,2.06612878]
[1746892690600,0.30674376,652.01,650.86,0.92097447]
[1746892690800,0.30674376,652.01,650.86,2.06612878]
[1746892691002,0.30674376,652.01,650.87,0.92097447]
[1746892691298,0.30674376,652.01,650.88,1.14515431]
[1746892691502,0.30674376,652.01,650.89,0.92097447]
[1746892691696,0.30674376,652.01,650.9,0.92097447]
[1746892691900,0.30674376,652.01,650.91,0.92097447]
[1746892692102,0.30674376,652.01,650.92,2.33717201]
[1746892692302,0.30674376,652.01,650.93,0.92097447]
[1746892692502,0.30674376,652.01,650.94,0.92097447]
[1746892692803,0.30674376,652.01,650.95,0.92097447]
[1746892693105,0.30674376,652.01,650.96,2.06612878]
[1746892693306,0.30674376,652.01,650.97,0.92097447]
[1746892693499,0.30674376,652.01,650.98,0.92097447]
[1746892693702,0.30674376,652.01,650.99,1.1920177]
[1746892693903,0.30674376,652.01,651.0,2.06612878]
[1746892694105,0.30674376,652.01,651.01,1.1920177]
[1746892694303,0.30674376,652.01,651.02,0.92097447]
[1746892694601,0.30674376,652.01,651.03,2.06612878]
[1746892694800,0.30674376,652.01,651.04,0.92097447]
[1746892695003,0.30674376,652.01,651.05,0.92097447]
[1746892695305,0.30674376,652.01,651.06,0.92097447]
[1746892695605,0.30674376,652.01,651.07,0.92097447]
[1746892695906,0.30674376,652.01,651.08,2.06612878]
[1746892696104,0.30674376,652.01,651.09,0.92097447]
[1746892696304,0.30674376,652.01,651.1,1.14515431]
[1746892696602,0.30674376,652.01,651.11,0.92097447]
[1746892697001,0.30674376,652.01,651.12,1.14515431]
[1746892697206,0.30674376,652.01,651.13,0.92097447]
[1746892697406,0.30674376,652.01,651.14,0.92192324]
[1746892697606,0.30674376,652.01,651.15,0.92192324]
[1746892697804,0.30674376,652.01,651.16,2.06707755]
[1746892698001,0.30674376,652.01,651.17,0.92192324]
[1746892698302,0.30674376,652.01,651.18,0.92192324]
[1746892698502,0.30674376,652.01,651.19,0.92192324]
[1746892698703,0.30674376,652.01,651.2,2.06707755]
[1746892698903,0.30674376,652.01,651.21,0.92192324]
[1746892699509,0.5830636,653.44,651.22,1.14515431]
[1746892699707,0.26682001,652.72,651.23,0.92192324]
[1746892699903,0.30612401,653.33,651.23,0.92192324]
[1746892700206,0.28184714,653.32,651.24,1.14515431]
[1746892700507,0.28184714,653.32,651.25,0.92192324]
[1746892700703,0.54858943,653.31,651.25,0.92192324]
[1746892700902,0.54858943,653.31,651.26,1.14515431]
[1746892701109,0.28184714,653.3,651.27,0.92192324]
[1746892701302,0.30618493,653.2,651.28,1.14515431]
[1746892701602,0.30618493,653.2,651.29,0.92192324]
[1746892702208,0.28184644,653.19,651.3,1.14515431]
[1746892702407,0.30619899,653.17,651.3,1.14515431]
[1746892702603,0.28184644,653.16,651.3,1.14515431]
[1746892702802,0.30621306,653.14,650.48,1.14515431]
[1746892703107,0.30621306,653.14,650.58,0.30741799]
[1746892703308,0.28184644,653.13,650.59,0.92197448]
[1746892703508,0.30627402,653.01,650.61,0.30740382]
[1746892703707,0.30627402,653.01,650.62,0.92197448]
[1746892703906,0.28184644,653.0,650.64,0.30738964]
[1746892704107,0.30633031,652.89,650.65,0.92197448]
[1746892704402,0.30633031,652.89,650.67,0.30737547]
[1746892704603,0.30633031,652.89,650.68,0.92183406]
[1746892704604,0.28184644,652.88,650.68,0.92183406]
[1746892704811,0.28184644,652.88,650.7,0.3073613]
[1746892705104,0.30634439,652.86,650.71,0.92183406]
[1746892705403,0.30634439,652.86,650.73,0.30734713]
[1746892705607,0.28184644,652.85,650.74,2.06698837]
[1746892705907,0.30639601,652.75,650.75,1.49992891]
[1746892706109,0.30639601,652.75,650.76,2.37432133]
[1746892706308,0.28184644,652.74,650.77,1.2291623]
[1746892706509,0.30641009,652.72,650.78,1.22963988]
[1746892706709,0.30641009,652.72,650.79,2.37478947]
[1746892706909,0.30641009,652.72,650.8,1.22963044]
[1746892707108,0.30641009,652.72,650.81,1.22962572]
[1746892707309,0.30641009,652.72,650.82,1.229621]
[1746892707510,0.28184644,652.71,650.83,2.37477058]
[1746892707704,0.30642418,652.69,650.84,1.50036872]
[1746892707911,0.30642418,652.69,650.85,1.22960683]
[1746892708220,0.28184644,652.68,650.86,2.37475642]
[1746892708411,0.30643826,652.66,650.87,1.22959739]
[1746892708707,0.28184644,652.65,650.88,2.64550415]
[1746892708914,0.30645235,652.63,650.89,1.50034512]
[1746892709207,0.30645235,652.63,650.9,1.22958323]
[1746892709408,0.28184644,652.62,650.91,1.22957851]
[1746892709613,0.30646644,652.6,650.92,2.3747281]
[1746892709810,0.30646644,652.6,650.93,0.92231637]
[1746892710009,0.28184644,652.59,650.94,2.06747068]
[1746892710208,0.30648053,652.57,650.95,1.19216489]
[1746892710410,0.30648053,652.57,650.96,0.92140772]
[1746892710611,0.28184644,652.56,650.97,2.3373192]
[1746892710813,0.28184644,652.56,650.98,2.3373192]
[1746892710814,0.30649462,652.54,650.98,2.3373192]
[1746892711011,0.30649462,652.54,650.99,2.06656203]
[1746892711216,0.28184644,652.53,651.0,1.19216489]
[1746892711416,0.30650871,652.51,651.01,0.92140772]
[1746892711617,0.30650871,652.51,651.02,2.06656203]
[1746892711816,0.30650871,652.51,651.03,1.19243131]
[1746892711817,0.28188287,652.5,651.03,1.19243131]
[1746892712017,0.3065228,652.48,651.04,0.92140772]
[1746892712315,0.3065228,652.48,651.05,0.92140772]
[1746892712514,0.28188287,652.47,651.06,2.33758562]
[1746892712717,0.3065322,652.46,651.07,0.92140772]
[1746892713016,0.3065322,652.46,651.08,2.06656203]
[1746892713315,0.28188287,652.45,651.09,0.92140772]
[1746892713513,0.30654159,652.44,651.1,2.06656203]
[1746892713711,0.30654159,652.44,651.11,0.92140772]
[1746892713911,0.30654159,652.44,651.12,0.92140772]
[1746892714113,0.28188287,652.43,651.13,2.06656203]
[1746892714310,0.30655099,652.42,651.14,0.92140772]
[1746892714514,0.30655099,652.42,651.15,2.06656203]
[1746892714714,0.30655099,652.42,651.16,0.92140772]
[1746892714912,0.30655099,652.42,651.17,0.92140772]
[1746892715111,0.30655099,652.42,651.18,0.92140772]
[1746892715414,0.30655099,652.42,651.19,0.92140772]
[1746892715716,0.30655099,652.42,651.2,2.06656203]
[1746892716017,0.30655099,652.42,651.21,1.14515431]
[1746892716220,0.30655099,652.42,651.22,0.9208578]
[1746892716419,0.30655099,652.42,651.23,2.06601211]
[1746892716617,0.30655099,652.42,651.24,0.9208578]
[1746892716817,0.30655099,652.42,651.25,0.9208578]
[1746892717113,0.30655099,652.42,651.23,1.14515431]
[1746892717319,0.30655099,652.42,651.26,1.14515431]
[1746892717712,0.30655099,652.42,651.25,1.14515431]
[1746892718118,0.30655099,652.42,650.93,1.14515431]
[1746892718418,0.30655099,652.42,650.94,1.19122628]
[1746892718611,0.30655099,652.42,650.95,0.92036322]
[1746892718815,0.30655099,652.42,650.96,2.06551753]
[1746892719017,0.30655099,652.42,650.97,0.92036322]
[1746892719218,0.30655099,652.42,650.98,0.92036322]
[1746892719418,0.30655099,652.42,650.99,0.92036322]
[1746892719618,0.30655099,652.42,651.0,0.92036322]
[1746892719819,0.30655099,652.42,651.01,2.06551753]
[1746892720018,0.30655099,652.42,651.02,0.92036322]
[1746892720213,0.30655099,652.42,651.03,0.92036322]
[1746892720417,0.30655099,652.42,651.04,0.92036322]
[1746892720611,0.30655099,652.42,651.05,0.92036322]
[1746892720818,0.30655099,652.42,651.06,2.06551753]
[1746892721016,0.30655099,652.42,651.07,0.92036322]
[1746892721214,0.30655099,652.42,651.08,2.06551753]
[1746892721419,0.30655099,652.42,651.09,0.92036322]
[1746892721619,0.30655099,652.42,651.1,2.06551753]
[1746892721819,0.30655099,652.42,651.11,0.92036322]
[1746892722018,0.30655099,652.42,651.12,0.92036322]
[1746892722218,0.30655099,652.42,651.13,2.06551753]
[1746892722422,0.28189284,652.41,651.14,2.06551753]
[1746892722625,0.28189284,652.41,651.15,0.92036322]
[1746892722924,0.28189284,652.41,651.16,1.14515431]
[1746892723127,0.28189284,652.41,651.16,1.41601737]
[1746892723424,0.28189284,652.41,651.17,1.41601737]
[1746892723627,0.28189284,652.41,651.18,1.14515431]
[1746892724125,0.28189284,652.41,651.03,1.14515431]
[1746892724321,0.28189284,652.41,651.04,0.92160548]
[1746892724527,0.28189284,652.41,651.05,2.33776567]
[1746892724726,0.28189284,652.41,651.06,2.06675979]
[1746892724926,0.28189284,652.41,651.07,0.92160548]
[1746892725228,0.28189284,652.41,651.08,0.27100588]
[1746892725430,0.28189284,652.41,651.09,2.06675979]
[1746892725727,0.28189284,652.41,651.1,1.19261136]
[1746892725926,0.28189284,652.41,651.11,0.92160548]
[1746892726126,0.28189284,652.41,651.11,1.19261136]
[1746892726328,0.28189284,652.41,651.12,0.92160548]
[1746892726622,0.28189284,652.41,651.12,2.06675979]
[1746892726823,0.28189284,652.41,651.13,0.92160548]
[1746892727225,0.28189284,652.41,651.14,1.14515431]
[1746892728027,0.28189284,652.41,651.03,1.14515431]
[1746892728225,0.30655099,652.42,651.04,0.92293814]
[1746892728423,0.30655099,652.42,651.05,0.92293814]